bitfinex/quotes_ETHUSD_20250422
["timestamp","ask_amount","ask_price","bid_price","bid_amount"]
[1745338845056,0.30739364,1696.5,1696.2,10.22058678]
[1745338845218,0.30739364,1696.5,1696.3,6.91711432]
[1745338845412,7.108,1696.7,1696.4,0.1841021]
[1745338845614,7.108,1696.7,1696.5,0.05894132]
[1745338845867,7.108,1696.7,1696.5,0.38607066]
[1745338846044,7.108,1696.7,1696.6,0.1841021]
[1745338846415,7.108,1696.7,1696.6,0.38555153]
[1745338847311,7.108,1696.7,1696.6,7.21425832]
[1745338847517,26.556,1697.1,1696.7,8.89357885]
[1745338847749,26.556,1697.1,1696.8,0.1841021]
[1745338848044,26.556,1697.1,1696.8,12.09100879]
[1745338848254,7.107,1697.1,1696.9,3.18395771]
[1745338848432,7.107,1697.1,1697.0,0.826]
[1745338848636,7.107,1697.1,1697.0,1.20333627]
[1745338849332,0.30735194,1697.3,1697.0,1.62366219]
[1745338849537,0.30735194,1697.3,1697.1,0.1839431]
[1745338849931,0.30735194,1697.3,1697.2,0.37676185]
[1745338850265,0.30735194,1697.3,1697.2,0.37676086]
[1745338850629,0.30735194,1697.3,1697.2,7.07056033]
[1745338850833,0.4060506,1697.4,1697.2,14.65136537]
[1745338851032,0.4060506,1697.4,1697.3,0.18393586]
[1745338851232,0.4060506,1697.4,1697.3,9.13452503]
[1745338851428,0.4060506,1697.4,1697.3,3.18130885]
[1745338851735,0.4060506,1697.4,1697.3,3.36520212]
[1745338851930,0.4060506,1697.4,1697.3,3.80366895]
[1745338852441,0.4060506,1697.4,1697.3,3.80368357]
[1745338853753,0.4060506,1697.4,1697.3,3.61977568]
[1745338853957,0.4060506,1697.4,1697.3,5.45273895]
[1745338854533,0.4060506,1697.4,1697.3,11.34444931]
[1745338855898,0.30725557,1697.8,1697.7,10.2691222]
[1745338856083,7.103,1698.5,1698.2,3.0]
[1745338856382,0.30711886,1698.6,1698.3,6.15318789]
[1745338856868,0.30711886,1698.6,1698.3,0.59103967]
[1745338857264,26.13882452,1698.8,1698.3,0.59103967]
[1745338857265,7.103,1698.9,1698.5,9.00270679]
[1745338857473,7.103,1698.9,1698.6,3.0]
[1745338857641,7.103,1698.9,1698.6,0.14797505]
[1745338857962,12.98940898,1698.9,1698.3,3.44055857]
[1745338858151,12.98940898,1698.9,1698.7,0.14876884]
[1745338858356,5.88640898,1698.9,1698.3,3.44055857]
[1745338858565,7.06364011,1698.9,1698.8,0.14789399]
[1745338858767,14.13664011,1698.9,1698.3,3.44055857]
[1745338858982,8.25023113,1698.9,1698.8,0.14789399]
[1745338859139,6.19275885,1699.1,1698.5,3.0]
[1745338859140,0.3070828,1699.1,1698.5,3.0]
[1745338859341,7.073,1699.0,1698.8,0.14801305]
[1745338859559,7.073,1699.0,1698.7,3.0]
[1745338859842,7.073,1699.0,1698.9,0.1473764]
[1745338860044,7.073,1699.0,1698.8,0.14801305]
[1745338860260,7.073,1699.0,1698.9,0.1473764]
[1745338860573,7.073,1699.0,1698.7,3.43173151]
[1745338860779,7.073,1699.0,1698.9,0.1473764]
[1745338860948,7.073,1699.0,1698.7,3.43173151]
[1745338861142,7.073,1699.0,1698.9,0.14624524]
[1745338861346,13.77601518,1699.0,1698.7,0.43173151]
[1745338861544,13.77601518,1699.0,1698.5,3.0]
[1745338861545,5.88650812,1698.8,1698.3,0.8288]
[1745338861768,0.58865081,1698.7,1698.3,0.8288]
[1745338861979,0.58865081,1698.7,1698.3,3.8288]
[1745338862163,5.88631035,1698.9,1698.3,3.8288]
[1745338863080,5.88705672,1698.7,1698.3,0.43152074]
[1745338863375,5.88705672,1698.7,1698.0,6.83150679]
[1745338863563,5.88626536,1698.9,1698.3,3.0]
[1745338863741,13.77623857,1699.0,1698.4,6.00270679]
[1745338863950,7.073,1699.0,1698.6,6.00270679]
[1745338864138,7.073,1699.0,1698.7,3.0]
[1745338864341,1e-08,1699.1,1698.8,0.8288]
[1745338864650,0.03134528,1700.5,1699.7,9.7119143]
[1745338864853,0.8172,1700.7,1700.1,3.0]
[1745338865053,7.08659709,1700.6,1700.1,3.0]
[1745338865291,7.08659709,1700.6,1700.1,3.43628502]
[1745338865583,12.96705427,1700.6,1700.1,3.43628502]
[1745338865785,7.08659709,1700.6,1700.3,3.0]
[1745338865941,0.8069768,1700.6,1700.3,3.0]
[1745338866142,7.08659709,1700.6,1700.3,3.0]
[1745338866458,0.01659709,1700.6,1700.5,3.0]
[1745338868501,0.01659709,1700.6,1700.5,3.12701409]
[1745338870499,0.01659709,1700.6,1700.5,9.55763743]
[1745338871065,0.01659709,1700.6,1700.5,3.12701409]
[1745338871589,0.01659709,1700.6,1700.5,3.18581345]
[1745338871792,0.01659709,1700.6,1700.5,10.58564898]
[1745338871968,0.01659709,1700.6,1700.5,11.13564898]
[1745338872171,0.01659709,1700.6,1700.5,11.00863489]
[1745338873916,0.4060506,1700.9,1700.6,0.55]
[1745338874085,0.4060506,1700.9,1700.8,16.14309862]
[1745338874293,7.063,1701.5,1701.2,5.87816263]
[1745338874480,7.063,1701.5,1701.4,6.71351255]
[1745338874984,19.422,1701.8,1701.5,3.0]
[1745338875191,0.8135,1702.2,1701.7,6.71351255]
[1745338875509,6.68918236,1702.0,1701.7,6.71351255]
[1745338875722,6.68897036,1702.0,1701.7,6.71351255]
[1745338875876,2.06991869,1702.0,1701.4,6.71351255]
[1745338876083,5.87698281,1701.6,1701.4,6.71351255]
[1745338876374,7.061,1701.7,1701.4,6.71351255]
[1745338877210,7.061,1701.7,1701.5,3.05876737]
[1745338877510,7.061,1701.7,1701.5,3.0]
[1745338877707,25.30737907,1702.5,1701.7,3.0]
[1745338877708,7.061,1702.1,1701.7,3.0]
[1745338877894,7.061,1702.1,1701.9,6.71351255]
[1745338878985,7.061,1702.1,1701.9,7.15752022]
[1745338879587,12.93623508,1702.1,1701.9,7.15752022]
[1745338879800,12.93625705,1702.1,1701.9,7.15752022]
[1745338880001,7.061,1702.1,1701.9,7.15752022]
[1745338880721,0.4060506,1702.6,1702.0,3.0]
[1745338881016,6.27961902,1702.6,1702.2,6.71351255]
[1745338881214,0.4060506,1702.6,1702.2,6.71351255]
[1745338881510,0.4060506,1702.6,1702.2,6.77225338]
[1745338881712,0.4060506,1702.6,1702.2,6.71351255]
[1745338882022,0.4060506,1702.6,1702.5,9.71351255]
[1745338882208,0.4060506,1702.6,1702.5,16.39382767]
[1745338882512,0.4060506,1702.6,1702.5,10.52011255]
[1745338882919,0.4060506,1702.6,1702.5,9.71351255]
[1745338883248,0.4060506,1702.6,1702.5,3.0]
[1745338885130,0.4060506,1702.6,1702.3,6.71351255]
[1745338885324,6.27944877,1702.6,1702.3,6.71351255]
[1745338885543,0.4060506,1702.6,1702.3,6.71351255]
[1745338885887,7.4610506,1702.6,1702.3,6.71351255]
[1745338887031,7.4610506,1702.6,1702.3,7.76552381]
[1745338887546,7.4610506,1702.6,1702.3,6.71351255]
[1745338887744,7.4610506,1702.6,1701.9,1.90796844]
[1745338887745,5.87396071,1702.5,1701.9,1.90796844]
[1745338887948,5.87396071,1702.5,1702.1,3.0]
[1745338888151,5.87434088,1702.4,1702.1,3.0]
[1745338888319,11.74871546,1702.4,1702.0,6.71351255]
[1745338888649,5.87434088,1702.4,1702.0,6.71351255]
[1745338888823,5.87391997,1702.5,1702.1,3.0]
[1745338889634,5.87407994,1702.4,1702.1,3.0]
[1745338889841,0.772,1702.3,1701.9,0.44265713]
[1745338890027,5.8756624,1702.0,1701.6,7.51881255]
[1745338890228,5.87642373,1701.8,1701.6,6.71351255]
[1745338890433,5.87642373,1701.8,1700.8,2.28881992]
[1745338890434,5.87668214,1701.7,1701.1,7.51881255]
[1745338890603,6.64825476,1701.8,1701.1,7.51881255]
[1745338890604,5.87717901,1701.5,1701.1,7.51881255]
[1745338890801,7.75597782,1701.5,1700.8,9.80763247]
[1745338891005,7.75597782,1701.5,1700.8,7.51881255]
[1745338891006,5.8780439,1701.3,1700.8,7.51881255]
[1745338891299,5.8780439,1701.3,1700.9,3.0]
[1745338891501,5.87786322,1701.3,1700.9,2.95]
[1745338891711,5.87838152,1701.2,1700.9,2.95]
[1745338891916,12.91384622,1701.1,1700.8,7.1577099]
[1745338892313,7.035,1701.1,1700.8,7.1577099]
[1745338892901,12.91361982,1701.1,1700.8,7.1577099]
[1745338893106,12.91361982,1701.1,1700.8,0.44419735]
[1745338893302,12.91361982,1701.1,1700.3,5.88103313]
[1745338893303,5.87953705,1700.9,1700.3,6.71351255]
[1745338893498,5.87937028,1700.9,1700.3,7.81757982]
[1745338893807,2.06336198,1701.0,1700.4,0.18356507]
[1745338894038,5.88054103,1700.6,1700.4,0.18356507]
[1745338894240,13.68762334,1700.5,1700.4,0.18356507]
[1745338894558,0.772,1700.8,1700.4,3.0]
[1745338894761,7.808,1700.8,1700.3,6.71351255]
[1745338894970,13.68761647,1700.8,1700.3,7.38486381]
[1745338895169,13.68761647,1700.8,1700.4,3.0]
[1745338895326,7.808,1700.8,1700.4,3.0]
[1745338895524,13.68772167,1700.8,1700.3,7.38486381]
[1745338895725,7.808,1700.8,1700.3,6.71351255]
[1745338895925,5.88044612,1700.6,1700.0,7.15772596]
[1745338896165,5.88094384,1700.5,1700.1,0.18360467]
[1745338896368,5.88114819,1700.4,1700.1,0.18360467]
[1745338896667,5.88077233,1700.5,1700.1,0.18360467]
[1745338896869,5.88135787,1700.3,1700.0,6.71351255]
[1745338897167,5.88116814,1700.4,1700.0,6.71351255]
[1745338898064,12.93785058,1700.5,1700.0,6.71351255]
[1745338898274,5.88100139,1700.4,1700.0,6.71351255]
[1745338898561,5.88045684,1700.6,1700.0,6.71351255]
[1745338898869,7.808,1700.8,1700.3,6.71351255]
[1745338899073,5.88006777,1700.7,1700.3,6.71351255]
[1745338899665,5.88028875,1700.6,1700.3,6.71351255]
[1745338899834,5.88028875,1700.6,1700.0,1.19631492]
[1745338899835,5.88085946,1700.5,1700.1,3.0]
[1745338900032,5.88062334,1700.5,1700.0,7.15794621]
[1745338900364,5.88151842,1700.3,1700.0,7.15794621]
[1745338900674,5.88110874,1700.4,1700.0,7.15794621]
[1745338900675,5.88116482,1700.4,1700.0,7.15794621]
[1745338900963,5.88122405,1700.4,1700.0,7.15794621]
[1745338901764,5.88179289,1700.2,1700.0,7.15794621]
[1745338901962,7.038,1700.3,1700.0,7.15794621]
[1745338902351,12.91938177,1700.3,1700.0,7.15794621]
[1745338903354,7.038,1700.3,1700.0,7.15794621]
[1745338903879,7.8666,1700.3,1700.0,0.44443366]
[1745338904083,7.038,1700.3,1699.9,6.71351255]
[1745338904284,7.038,1700.3,1699.9,7.68486381]
[1745338904666,7.038,1700.3,1699.9,8.12271159]
[1745338904869,12.9194149,1700.3,1699.9,7.15136033]
[1745338905573,5.88171116,1700.2,1699.9,7.15136033]
[1745338905777,18.80107821,1700.3,1699.9,7.15136033]
[1745338906024,18.80107821,1700.3,1699.8,3.0]
[1745338906025,5.882215,1700.1,1699.8,0.5906]
[1745338906184,5.88206768,1700.1,1699.8,0.5906]
[1745338906359,6.55313445,1700.1,1699.7,3.0]
[1745338906688,6.55313445,1700.1,1699.6,7.47301255]
[1745338906976,5.88206768,1700.1,1699.7,3.5906]
[1745338907397,5.88251522,1700.0,1699.7,3.5906]
[1745338907687,5.88206768,1700.1,1699.7,3.5906]
[1745338907688,11.76440899,1700.1,1699.7,3.5906]
[1745338908140,5.88206768,1700.1,1699.7,3.5906]
[1745338909249,5.88287577,1699.9,1699.6,0.44611319]
[1745338909465,5.88287577,1699.9,1699.5,6.71351255]
[1745338909466,12.92415258,1699.8,1699.5,6.71351255]
[1745338909656,18.8074596,1699.8,1699.5,6.71351255]
[1745338909866,5.88357516,1699.7,1699.4,0.7595]
[1745338910263,5.88357516,1699.7,1699.4,1.3501]
[1745338910463,5.88357516,1699.7,1699.4,1.78382728]
[1745338910676,18.8075464,1699.8,1699.4,1.78382728]
[1745338910874,5.88479359,1699.3,1699.0,0.7595]
[1745338911079,7.041,1699.3,1699.0,0.7595]
[1745338911250,7.041,1699.3,1699.2,6.71351255]
[1745338911863,7.041,1699.3,1699.0,1.1909793]
[1745338912254,7.041,1699.3,1699.0,4.1909793]
[1745338912503,7.041,1699.3,1699.0,2.28142849]
[1745338912652,7.041,1699.3,1699.0,2.3402817]
[1745338912851,7.041,1699.3,1699.0,2.28142849]
[1745338913083,7.041,1699.3,1699.0,5.28142849]
[1745338913690,7.041,1699.3,1699.0,4.1909793]
[1745338914393,7.041,1699.3,1699.0,3.4314793]
[1745338914772,7.041,1699.3,1699.0,3.49033251]
[1745338916178,7.041,1699.3,1699.0,3.4314793]
[1745338916463,7.041,1699.3,1699.0,3.49033148]
[1745338916663,7.041,1699.3,1699.0,3.4314793]
[1745338916895,7.041,1699.3,1699.0,3.49033142]
[1745338917064,7.041,1699.3,1699.0,10.98501553]
[1745338917259,7.041,1699.3,1699.2,6.71351255]
[1745338917461,7.041,1699.3,1699.2,16.41698156]
[1745338917678,7.043,1699.7,1699.2,10.65670431]
[1745338917877,7.043,1699.7,1699.2,22.42669363]
[1745338918097,7.043,1699.7,1699.3,11.18615295]
[1745338918396,7.043,1699.7,1699.3,5.24266936]
[1745338919395,7.043,1699.7,1699.3,5.30150847]
[1745338919610,7.043,1699.7,1699.4,0.18367999]
[1745338920069,7.043,1699.7,1699.3,5.24266936]
[1745338920399,7.043,1699.7,1699.3,11.12744177]
[1745338920918,7.043,1699.7,1699.3,5.24266936]
[1745338921086,7.043,1699.7,1699.3,3.0]
[1745338921412,7.043,1699.7,1699.5,3.0]
[1745338922302,7.043,1699.7,1699.6,0.18368796]
[1745338922617,7.043,1699.7,1699.6,6.90619699]
[1745338922996,19.397,1699.9,1699.6,7.66569699]
[1745338923317,19.397,1699.9,1699.8,6.72250903]
[1745338923679,19.397,1699.9,1699.8,6.90619699]
[1745338924104,7.025,1700.1,1699.9,3.0]
[1745338924406,7.025,1700.1,1700.0,6.72250903]
[1745338924706,7.025,1700.1,1700.0,6.90619699]
[1745338926609,7.025,1700.1,1700.0,9.90619699]
[1745338926919,0.8286,1700.8,1700.2,8.88154625]
[1745338927097,7.025,1701.0,1700.6,6.72250903]
[1745338927282,7.025,1701.0,1700.8,6.72250903]
[1745338928276,7.025,1701.0,1700.9,0.18368796]
[1745338928478,26.427,1701.5,1701.0,0.7595]
[1745338928679,33.13299522,1701.5,1701.1,3.0]
[1745338929007,33.13299522,1701.5,1701.2,0.18368796]
[1745338929208,26.427,1701.5,1701.2,6.90619699]
[1745338929512,26.427,1701.5,1701.2,3.18368796]
[1745338929694,26.427,1701.5,1701.2,4.5770103]
[1745338929896,7.024,1701.5,1701.2,3.0]
[1745338930478,7.024,1701.5,1700.9,7.46752914]
[1745338930679,5.87793929,1701.3,1701.0,3.0]
[1745338930979,5.87793929,1701.3,1700.9,6.70802914]
[1745338931616,0.775,1701.4,1700.8,0.44850277]
[1745338931774,0.775,1701.4,1700.7,3.8126]
[1745338931775,5.87841165,1701.2,1700.7,3.8126]
[1745338931978,5.87855225,1701.1,1700.7,0.8126]
[1745338932415,5.87855225,1701.1,1700.7,3.8126]
[1745338932819,5.87855225,1701.1,1700.7,0.8126]
[1745338932984,5.87855225,1701.1,1700.7,3.8126]
[1745338933608,11.75736981,1701.1,1700.7,3.8126]
[1745338933814,5.8797988,1700.8,1700.3,13.04910686]
[1745338934032,5.87889476,1701.0,1700.4,0.18356546]
[1745338934033,12.9010527,1701.0,1700.4,0.18356546]
[1745338934183,7.022,1701.0,1700.5,3.0]
[1745338934577,7.022,1701.0,1700.6,0.18356546]
[1745338935109,7.022,1701.0,1700.4,8.8807917]
[1745338935314,7.022,1701.0,1700.5,0.94687615]
[1745338935512,7.022,1701.0,1700.6,6.70802914]
[1745338935811,7.022,1701.0,1700.7,3.87139277]
[1745338935983,7.022,1701.0,1700.7,3.8126]
[1745338936595,7.022,1701.0,1700.7,3.0]
[1745338936789,8.31205513,1701.0,1700.7,3.0]
[1745338936987,7.022,1701.0,1700.7,3.0]
[1745338937692,5.87930402,1700.9,1700.6,6.05]
[1745338937895,7.022,1701.0,1700.6,6.05]
[1745338937896,12.90106825,1701.0,1700.6,6.05]
[1745338938713,18.78022481,1701.0,1700.6,5.98127169]
[1745338938919,6.65426571,1700.9,1700.6,5.98127169]
[1745338939520,0.775,1700.9,1700.6,5.98127169]
[1745338939722,12.90106825,1701.0,1700.6,5.98127169]
[1745338939921,7.022,1701.0,1700.7,3.0]
[1745338941109,7.022,1701.0,1700.8,0.5906]
[1745338942779,12.90100027,1701.0,1700.7,3.5906]
[1745338942986,0.775,1700.9,1700.7,3.5906]
[1745338943187,7.022,1701.0,1700.7,3.5906]
[1745338944523,7.022,1701.0,1700.7,4.4032]
[1745338944899,12.90105968,1701.0,1700.7,4.4032]
[1745338945219,14.77903472,1701.0,1700.7,4.4032]
[1745338945425,8.89997504,1701.0,1700.6,5.98127169]
[1745338945638,5.87993179,1700.7,1700.5,0.5906]
[1745338945791,0.775,1700.8,1700.5,0.5906]
[1745338946117,0.775,1700.8,1700.3,1.24386486]
[1745338946118,5.88057876,1700.6,1700.3,1.24386486]
[1745338946325,5.88096918,1700.4,1700.3,0.43126486]
[1745338946498,5.88096918,1700.4,1700.0,9.09768723]
[1745338946499,6.64950686,1700.4,1700.0,7.51292914]
[1745338946685,0.7684,1700.4,1700.0,7.51292914]
[1745338946886,0.7684,1700.4,1700.1,3.0]
[1745338947089,5.88200694,1700.1,1700.0,0.44725093]
[1745338947312,5.88200694,1700.1,1699.7,13.49420083]
[1745338947523,5.88200694,1700.1,1699.7,5.98127169]
[1745338947524,7.7894,1700.0,1699.7,5.98127169]
[1745338948219,13.67194779,1700.0,1699.7,5.98127169]
[1745338948390,13.67194779,1700.0,1699.6,6.70802914]
[1745338948590,5.88280808,1699.9,1699.6,0.44206321]
[1745338948785,5.88292908,1699.9,1699.4,6.78617169]
[1745338949520,5.88292908,1699.9,1699.5,3.18368153]
[1745338949686,5.8831044,1699.8,1699.5,0.18368153]
[1745338949886,5.88288554,1699.9,1699.2,8.41933404]
[1745338950110,9.15659478,1700.0,1699.6,6.72254732]
[1745338950311,15.03895601,1700.0,1699.6,6.72254732]
[1745338950517,20.9216007,1700.0,1699.6,6.72254732]
[1745338950725,20.92162846,1700.0,1699.6,6.72254732]
[1745338950921,20.92162846,1700.0,1699.6,7.15795468]
[1745338951232,7.97493005,1699.9,1699.6,7.15795468]
[1745338951522,2.09216285,1699.9,1699.4,9.72254732]
[1745338951692,7.97497302,1699.9,1699.4,9.72254732]
[1745338953114,7.97497302,1699.9,1699.2,0.43871325]
[1745338953115,11.76781939,1699.6,1699.2,0.43871325]
[1745338953313,7.002,1699.5,1699.0,0.8152]
[1745338953497,0.8116,1699.3,1698.8,12.70381901]
[1745338953700,6.6965059,1699.3,1698.9,3.0]
[1745338953897,5.88522033,1699.2,1698.9,3.0]
[1745338954096,6.69659091,1699.3,1698.8,12.70381901]
[1745338954404,6.69659091,1699.3,1698.9,3.0]
[1745338954717,0.8116,1699.3,1698.9,0.43033833]
[1745338954913,6.69657757,1699.3,1698.8,12.70381901]
[1745338955124,6.69657757,1699.3,1698.9,3.0]
[1745338955424,6.69657757,1699.3,1698.8,12.70381901]
[1745338955425,6.69652399,1699.3,1698.8,12.70381901]
[1745338955827,6.69652399,1699.3,1698.8,14.35572091]
[1745338955828,0.8116,1699.3,1698.8,14.35572091]
[1745338956198,7.8136,1699.5,1699.1,3.8152]
[1745338956422,5.88459591,1699.4,1699.1,3.0]
[1745338956591,7.8136,1699.5,1699.1,3.0]
[1745338957312,5.88461345,1699.4,1699.1,3.0]
[1745338957597,7.84286194,1699.4,1699.0,6.72254732]
[1745338957798,5.88489037,1699.3,1698.9,10.53774732]
[1745338958397,5.88523363,1699.2,1698.9,10.53774732]
[1745338958603,5.88523363,1699.2,1698.8,3.0]
[1745338958938,5.8856142,1699.1,1698.7,13.96719226]
[1745338959230,7.005,1699.0,1698.7,13.96719226]
[1745338959427,7.005,1699.0,1698.8,3.05886546]
[1745338959742,7.005,1699.0,1698.8,3.0]
[1745338960332,7.005,1699.0,1698.9,9.72254732]
[1745338963857,1.95824849,1699.4,1699.0,3.8152]
[1745338963858,7.006,1699.4,1699.0,3.8152]
[1745338964156,7.006,1699.4,1699.2,6.72254732]
[1745338964851,7.006,1699.4,1699.2,7.16829753]
[1745338965759,7.006,1699.4,1699.2,0.44575021]
[1745338966089,7.006,1699.4,1699.1,3.0]
[1745338966256,7.006,1699.4,1699.1,5.24048072]
[1745338966754,7.006,1699.4,1699.1,3.0]
[1745338968860,7.006,1699.4,1699.1,8.88527719]
[1745338969059,7.006,1699.4,1699.1,3.0]
[1745338969227,7.006,1699.4,1699.0,19.40460571]
[1745338969428,7.006,1699.4,1699.0,13.51901901]
[1745338970277,7.006,1699.4,1699.1,3.0]
[1745338971242,12.89054575,1699.4,1699.1,3.0]
[1745338971444,13.70924575,1699.4,1699.1,3.0]
[1745338972039,7.8247,1699.4,1699.1,3.0]
[1745338974590,7.8247,1699.4,1699.0,5.98127169]
[1745338974971,7.8247,1699.4,1699.1,0.18372818]
[1745338975301,5.88495466,1699.3,1699.1,0.18372818]
[1745338975590,20.96489767,1699.4,1699.0,5.98127169]
[1745338975756,5.88489687,1699.3,1698.8,1.4033]
[1745338976590,5.88489687,1699.3,1698.9,0.18374943]
[1745338976799,7.98140477,1699.3,1698.9,0.18374943]
[1745338976953,7.98140477,1699.3,1699.0,0.18374943]
[1745338977394,7.98140477,1699.3,1699.1,0.18374943]
[1745338977599,13.86643514,1699.3,1699.1,0.18374943]
[1745338977751,13.86634639,1699.3,1699.1,0.18374943]
[1745338978090,5.88576955,1699.1,1698.8,3.0]
[1745338978393,5.88603331,1699.0,1698.7,0.44817325]
[1745338978602,7.007,1698.9,1698.8,0.1837802]
[1745338978955,12.89316163,1698.9,1698.8,0.1837802]
[1745338979158,15.54527376,1698.9,1698.8,0.1837802]
[1745338979855,5.88683155,1698.8,1698.5,0.44398348]
[1745338980056,11.7735984,1698.8,1698.3,4.4002]
[1745338980255,9.65911213,1698.9,1698.3,4.4002]
[1745338980477,7.7812,1698.9,1698.5,3.0]
[1745338980679,7.007,1698.9,1698.5,4.56690876]
[1745338981091,5.88666987,1698.8,1698.5,3.0]
[1745338981294,5.88666987,1698.8,1698.6,0.18377467]
[1745338981463,11.7734369,1698.8,1698.6,0.18377467]
[1745338981667,6.66105465,1698.7,1698.3,0.5906]
[1745338981992,5.88741173,1698.6,1698.2,6.72254732]
[1745338982153,7.9159534,1698.7,1698.2,6.72254732]
[1745338982558,7.9159534,1698.7,1698.3,0.18380634]
[1745338982960,13.66754086,1698.9,1698.3,3.18380634]
[1745338983161,13.66754086,1698.9,1698.4,0.18380634]
[1745338983383,7.007,1698.9,1698.7,3.0]
[1745338983568,7.007,1698.9,1698.8,0.18380634]
[1745338983984,6.985,1699.4,1698.9,3.8096]
[1745338984170,6.985,1699.4,1699.1,8.885436]
[1745338984374,6.985,1699.4,1699.1,3.0]
[1745338984796,6.985,1699.4,1699.2,0.18380634]
[1745338985212,6.985,1699.4,1699.3,0.18380634]
[1745338986405,14.15635969,1699.4,1699.3,0.18380634]
[1745338986910,8.2719299,1699.4,1699.3,0.18380634]
[1745338987299,14.15635969,1699.4,1699.3,0.18380634]
[1745338987603,14.93055969,1699.4,1699.3,0.18380634]
[1745338988408,5.88504735,1699.3,1698.8,5.98127169]
[1745338988639,5.88504735,1699.3,1698.7,6.33623936]
[1745338988807,14.93073322,1699.4,1698.9,0.18375243]
[1745338988974,7.7592,1699.4,1698.9,3.18375243]
[1745338989173,7.7592,1699.4,1699.0,0.18375243]
[1745338989704,7.7592,1699.4,1699.1,0.18375243]
[1745338989876,13.64366736,1699.4,1699.1,0.18375243]
[1745338990271,5.88477608,1699.3,1699.2,0.18375243]
[1745338990471,12.86946736,1699.4,1699.2,0.18375243]
[1745338990677,9.47037563,1699.4,1698.9,3.8096]
[1745338990872,6.985,1699.4,1698.9,3.8096]
[1745338991177,12.86946123,1699.4,1699.0,0.18373281]
[1745338991673,6.985,1699.4,1699.1,0.18373281]
[1745338992090,6.985,1699.4,1699.2,0.18373281]
[1745338992786,6.985,1699.4,1698.9,3.8096]
[1745338992987,6.985,1699.4,1699.0,0.18371922]
[1745338993387,6.985,1699.4,1699.1,0.18371922]
[1745338993818,6.985,1699.4,1699.2,0.18371922]
[1745338994221,6.985,1699.4,1699.3,0.18371922]
[1745338994380,6.985,1699.4,1699.3,6.8306953]
[1745338994585,19.407,1699.8,1699.4,3.0]
[1745338994586,26.392,1699.8,1699.4,3.0]
[1745338995213,32.27533884,1699.8,1699.5,0.18371922]
[1745338995429,6.1,1700.0,1699.5,0.18371922]
[1745338995430,6.985,1700.0,1699.6,11.78443363]
[1745338995638,6.985,1700.0,1699.8,5.90097268]
[1745338995916,6.985,1700.0,1699.9,3.0]
[1745338996286,6.985,1700.0,1699.9,3.18371922]
[1745338996825,6.985,1700.0,1699.9,4.09218841]
[1745338997179,6.985,1700.0,1699.9,4.53282547]
[1745338997614,6.985,1700.0,1699.9,0.62435628]
[1745339000809,6.985,1700.0,1699.9,0.44063706]
[1745339001009,6.985,1700.0,1699.7,15.62682537]
[1745339001209,6.985,1700.0,1699.8,0.18364074]
[1745339001812,6.985,1700.0,1699.9,3.0]
[1745339004314,6.985,1700.0,1699.9,4.63506643]
[1745339004513,0.7813,1700.4,1700.0,0.7622]
[1745339004514,6.983,1700.4,1700.0,0.7622]
[1745339004711,6.983,1700.4,1700.2,3.0]
[1745339005323,6.983,1700.4,1700.0,0.7622]
[1745339005525,6.983,1700.4,1700.0,3.0]
[1745339005526,12.46141223,1700.3,1700.0,3.0]
[1745339005819,7.36110825,1700.3,1700.0,3.0]
[1745339006025,7.36110825,1700.3,1700.1,0.5906]
[1745339006406,1.4796,1700.3,1700.1,0.5906]
[1745339006602,0.7813,1700.3,1700.1,0.5906]
[1745339007009,12.86415523,1700.4,1700.1,0.5906]
[1745339007664,5.88135191,1700.3,1700.1,0.5906]
[1745339008565,12.86415523,1700.4,1700.1,0.5906]
[1745339009355,6.983,1700.4,1700.1,3.35906]
[1745339009562,6.983,1700.4,1700.3,3.0]
[1745339009772,6.959,1700.8,1700.3,9.64351506]
[1745339009919,6.66041495,1701.0,1700.6,0.5906]
[1745339010326,6.66041495,1701.0,1700.6,1.3528]
[1745339011180,0.7813,1701.0,1700.6,1.3528]
[1745339011342,5.87938332,1700.9,1700.6,1.3528]
[1745339011545,7.13339685,1700.9,1700.5,3.0]
[1745339011740,13.01298262,1700.9,1700.5,3.0]
[1745339012040,5.87960388,1700.8,1700.5,3.0]
[1745339012239,6.958,1700.7,1700.5,3.0]
[1745339012739,6.958,1700.7,1700.5,3.5906]
[1745339014676,0.09482472,1700.6,1700.5,3.5906]
[1745339014849,0.09482472,1700.6,1700.5,3.0]
[1745339015027,0.09482472,1700.6,1700.5,3.5906]
[1745339016774,0.09482472,1700.6,1700.5,0.5906]
[1745339016949,0.09482472,1700.6,1700.5,10.8032057]
[1745339017263,0.09482472,1700.6,1700.5,10.92796994]
[1745339017461,0.09482472,1700.6,1700.5,10.10182149]
[1745339017986,0.09482472,1700.6,1700.5,21.96371652]
[1745339018131,0.09482472,1700.6,1700.5,22.72591652]
[1745339019366,0.09482472,1700.6,1700.5,16.84529318]
[1745339021140,0.09482472,1700.6,1700.5,9.83814149]
[1745339022534,0.09482472,1700.6,1700.5,9.07594149]
[1745339026854,0.09482472,1700.6,1700.5,9.66654149]
[1745339027373,5.97510226,1700.6,1700.5,0.18356674]
[1745339027678,1.97613702,1700.6,1700.5,0.18356674]
[1745339027888,0.09482472,1700.6,1700.5,0.18356674]
[1745339029343,0.09482472,1700.6,1700.5,3.18356674]
[1745339030275,6.958,1700.7,1700.5,3.18356674]
[1745339030766,6.958,1700.7,1700.6,6.07594149]
[1745339031154,6.958,1700.7,1700.6,6.66654149]
[1745339031778,6.958,1700.7,1700.6,0.77416674]
[1745339033952,6.958,1700.7,1700.6,6.66654149]
[1745339034475,6.958,1700.7,1700.6,0.77416674]
[1745339034842,12.83793179,1700.7,1700.6,0.77416674]
[1745339035273,15.48419364,1700.7,1700.6,0.18356674]
[1745339035982,15.48419364,1700.7,1700.0,5.89237475]
[1745339035983,6.6558779,1700.3,1700.0,5.89237475]
[1745339036154,0.7745,1700.3,1700.2,5.89237475]
[1745339036356,6.65525518,1700.5,1700.3,0.5906]
[1745339036676,6.65525518,1700.5,1700.2,6.07598924]
[1745339036677,0.7745,1700.5,1700.2,6.07598924]